lending/lending_fUSD_20240130
["ID","MTS","AMOUNT","RATE_DAILY","PERIOD"]
[313011477,1706613038186,-406.75836522,0.00022759,2]
[313011478,1706613038197,-971.93103371,0.00022767,2]
[313011479,1706613038209,-504.61381043,0.00022768,2]
[313011480,1706613038220,-155.46,0.00022795,2]
[313011481,1706613038233,-6291.8879,0.00022799,2]
[313011482,1706613038245,-3100.4642,0.00022799,2]
[313011483,1706613038256,-159.88454983,0.00022819,2]
[313011484,1706613038266,-159.88454983,0.00022839,2]
[313011485,1706613038277,-159.88454983,0.0002286,2]
[313011486,1706613038288,-159.88454983,0.0002288,2]
[313011487,1706613038298,-155.46,0.00022885,2]
[313011488,1706613038310,-2738.53,0.00022899,2]
[313011489,1706613038322,-499.99,0.00022899,2]
[313011490,1706613038332,-2174.33,0.00022899,2]
[313011491,1706613038343,-5524.39,0.00022899,2]
[313011492,1706613038355,-159.88454983,0.000229,2]
[313011493,1706613038365,-152.00841253,0.000229,2]
[313011494,1706613038376,-905.37521346,0.000229,2]
[313011495,1706613038387,-3754.4199768,0.000229,2]
[313011496,1706613038398,-269.80500478,0.000229,2]
[313011497,1706613038408,-520.788422,0.000229,2]
[313011498,1706613038419,-155.46,0.00022974,2]
[313011499,1706613038429,-775.5819366,0.00022997,2]
[313011500,1706613038440,-369.87870048,0.00022998,2]
[313011501,1706613038451,-13287.18067542,0.00022998,2]
[313011502,1706613038461,-228.79385703,0.00022999,2]
[313011503,1706613038472,-505.10405898,0.00022999,2]
[313011504,1706613038483,-212.73878423,0.00022999,2]
[313011505,1706613038493,-391.60749981,0.00022999,2]
[313011506,1706613038504,-831.93533236,0.00023,2]
[313011507,1706613038515,-2466460.21276133,0.00023,2]
[313011508,1706613038837,-240540.17119662,0.00023,2]
[313011509,1706613038850,-988.1124804,0.00023,2]
[313011510,1706613038862,-2502.59387264,0.00023,2]
[313011519,1706613039331,-626.67056359,0.00023,2]
[313011520,1706613039343,-813.24240312,0.00023,2]
[313011533,1706613043965,-533.56145808,0.00022899,2]
[313011534,1706613043976,-166.02288615,0.000229,2]
[313011535,1706613043987,-216979.47003055,0.00023,2]
[313011536,1706613044021,-1043.9070718,0.00023,2]
[313011537,1706613044033,-689.0694402,0.00023,2]
[313011544,1706613044141,-8894.03345698,0.00023,2]
[313011547,1706613044153,-1037.50757047,0.00023,2]
[313011549,1706613044165,-264.1135013,0.00023,2]
[313011562,1706613044261,-16913.3,0.00023,2]
[313011566,1706613045128,-279.99555119,0.00022999,2]
[313011567,1706613045140,-242.2063088,0.00023,2]
[313011568,1706613045153,-2173.36628,0.00023,2]
[313011571,1706613046308,-870.02,0.00023,2]
[313011572,1706613046438,-40872.94065676,0.00023,2]
[313011575,1706613158332,162.79564236,0.00022496,2]
[313011576,1706613176642,191.73989941,0.000225,2]
[313011577,1706613242272,200.0,0.00021865,2]
[313011578,1706613260917,1000.0,0.00021856,2]
[313011579,1706613284126,163.5,0.00021856,2]
[313011580,1706613438516,155.46,0.00022031,2]
[313011581,1706613438625,155.46,0.00022175,2]
[313011582,1706613438855,155.46,0.00022318,2]
[313011583,1706613439068,155.46,0.00022462,2]
[313011584,1706613445381,222.39,0.0001994,2]
[313011585,1706613445624,222.39,0.00022204,2]
[313011586,1706613454392,250.0,0.00021858,2]
[313011587,1706613534983,680.89,0.00021865,2]
[313011588,1706613555983,23900.0,0.00021865,2]
[313011589,1706613587109,215.86,0.00021858,2]
[313011590,1706613681756,279.99555119,0.00022499,2]
[313011591,1706613709613,2325.42076986,0.00022499,2]
[313011592,1706613724892,432.06,0.00021877,2]
[313011593,1706613745763,200.0,0.00021881,2]
[313011594,1706613881262,155.46,0.00022044,2]
[313011595,1706613881482,155.46,0.00022331,2]
[313011596,1706613909009,200.15,0.0001996,2]
[313011597,1706613909222,200.15,0.00022224,2]
[313011598,1706613930931,194.52,0.00021874,2]
[313011599,1706613938737,167.29,0.00021878,2]
[313011600,1706613963845,567.4,0.00021871,2]
[313011601,1706613976938,5202.33214498,0.00022224,2]
[313011602,1706613986714,156.07670342,0.00021871,2]
[313011603,1706613988593,361.93405445,0.00021871,2]
[313011604,1706613991469,1040.22432607,0.00021871,2]
[313011605,1706613992354,862.49160225,0.00021871,2]
[313011606,1706613993588,1100.14824388,0.00021871,2]
[313011607,1706613997785,710.4316209,0.00021848,2]
[313011608,1706613999394,112.04947817,0.00021871,2]
[313011609,1706613999414,2225.14124004,0.00021871,2]
[313011610,1706614001342,1029.64734929,0.00021871,2]
[313011611,1706614005297,2185.31764007,0.00021652,2]
[313011612,1706614011526,500.0,0.00021871,2]
[313011613,1706614011753,869.84125155,0.00021871,2]
[313011614,1706614013714,534.42411814,0.00021871,2]
[313011615,1706614019081,848.51334281,0.00021871,2]
[313011616,1706614026351,858.66470521,0.00021871,2]
[313011617,1706614028900,948.45035289,0.00021871,2]
[313011618,1706614028929,4253.88179209,0.00021871,2]
[313011619,1706614033108,-355.80326123,0.00022514,2]
[313011620,1706614179476,840.0,0.00021936,2]
[313011627,1706614232284,-644.19673877,0.00022514,2]
[313011628,1706614232294,-456.98451374,0.00022515,2]
[313011629,1706614232345,-221.35215535,0.00022515,2]
[313011630,1706614232354,-300.0,0.00022594,2]
[313011631,1706614232363,-1233.43377447,0.00022595,2]
[313011660,1706614238242,-17823.683012,0.00022595,2]
[313011661,1706614238260,-2738.53,0.00022602,2]
[313011662,1706614238272,-323.89,0.00022606,2]
[313011663,1706614238281,-155.46,0.00022618,2]
[313011664,1706614238291,-150.0,0.00022646,2]
[313011665,1706614238302,-952.10937077,0.00022768,2]
[313011666,1706614238312,-284.7408929,0.00022768,2]
[313011667,1706614238322,-499.99,0.00022768,2]
[313011668,1706614238332,-6291.8879,0.000228,2]
[313011669,1706614238341,-5524.39,0.000228,2]
[313011670,1706614238352,-704.40899641,0.0002288,2]
[313011671,1706614238363,-516.325,0.00022898,2]
[313011672,1706614238372,-3321.69,0.00022898,2]
[313011673,1706614238382,-2089.49355459,0.000229,2]
[313011674,1706614238392,-6221.1538,0.000229,2]
[313011675,1706614238401,-640.5609,0.000229,2]
[313011676,1706614238411,-151.95006145,0.000229,2]
[313011677,1706614238420,-520.788422,0.000229,2]
[313011678,1706614238430,-10839.30029809,0.000229,2]
[313011679,1706614238439,-269.80500478,0.000229,2]
[313011680,1706614238449,-50000.00000001,0.000229,2]
[313011681,1706614238458,-634.66694592,0.000229,2]
[313011682,1706614238468,-634.66694592,0.000229,2]
[313011683,1706614238477,-400.0,0.00022904,2]
[313011684,1706614238487,-2089.49355448,0.00022904,2]
[313011685,1706614238496,-155.46,0.00022906,2]
[313011686,1706614238505,-2089.49355448,0.00022909,2]
[313011687,1706614238515,-2089.49355448,0.00022913,2]
[313011688,1706614238524,-2089.49355448,0.00022917,2]
[313011689,1706614238534,-2089.49355448,0.00022921,2]
[313011690,1706614238543,-2089.49355448,0.00022926,2]
[313011691,1706614238553,-2089.49355448,0.0002293,2]
[313011692,1706614238562,-800.0,0.00022932,2]
[313011693,1706614238572,-2089.49355448,0.00022934,2]
[313011694,1706614238581,-2089.49355448,0.00022938,2]
[313011695,1706614238591,-2089.49355448,0.00022943,2]
[313011696,1706614238601,-2089.49355448,0.00022947,2]
[313011697,1706614238611,-163.5,0.00022949,2]
[313011698,1706614238620,-432.06,0.00022971,2]
[313011700,1706614238630,-243.39006042,0.00022998,2]
[313011701,1706614238640,-775.5819366,0.00022998,2]
[313011703,1706614238649,-369.87870048,0.00022998,2]
[313011705,1706614238659,-971.93103371,0.00022998,2]
[313011707,1706614238668,-504.61381043,0.00022998,2]
[313011709,1706614238677,-8839.0942357,0.00022998,2]
[313011710,1706614238687,-1950.41293127,0.00022998,2]
[313011713,1706614238697,-39561.10267603,0.00022999,2]
[313011715,1706614238707,-165.51841237,0.00022999,2]
[313011716,1706614238717,-391.60749981,0.00022999,2]
[313011717,1706614238726,-212.73878423,0.00022999,2]
[313011718,1706614238738,-353.57284129,0.00022999,2]
[313011719,1706614238748,-228.79385703,0.00022999,2]
[313011720,1706614238757,-831.93533236,0.00023,2]
[313011721,1706614238768,-2336326.06216358,0.00023,2]
[313011722,1706614239068,-240540.17119662,0.00023,2]
[313011723,1706614239360,-1017.66627,0.00023,2]
[313011724,1706614239374,-4024.12769818,0.00023,2]
[313011725,1706614239398,-813.04,0.00023,2]
[313011726,1706614239410,-419.96476,0.00023,2]
[313011727,1706614239423,-59911.50973798,0.00023,2]
[313011728,1706614239448,-31999.11701602,0.00023,2]
[313011736,1706614240891,-1151.55074379,0.00023,2]
[313011737,1706614241661,-307.46014093,0.00023,2]
[313011738,1706614241673,-644.77640894,0.00023,2]
[313011739,1706614241685,-468.45299402,0.00023,2]
[313011740,1706614241698,-451241.45811138,0.00023,2]
[313011787,1706614243273,-2609.2282807,0.00023,2]
[313011789,1706614243285,-46874.25734782,0.00023,2]
[313011795,1706614243328,-561.1475396,0.00023,2]
[313011799,1706614243444,-7651.00176756,0.00023,2]
[313011800,1706614243455,-1997.33903971,0.00023,2]
[313011801,1706614243466,-1044.3999996,0.00023,2]
[313011802,1706614243509,-4103.3305331,0.00023,2]
[313011803,1706614243520,-613.99623277,0.00023,2]
[313011834,1706614248339,-311.2997495,0.00022999,2]
[313011835,1706614248348,-10547.7002505,0.00023,2]
[313011837,1706614399707,180.13,0.00021254,2]
[313011838,1706614503144,150.0,0.00022498,2]
[313011839,1706614557132,829.87,0.00022498,2]
[313011840,1706614557152,2000.0,0.00022498,2]
[313011841,1706614557171,2000.0,0.00022498,2]
[313011842,1706614557191,1292.31972474,0.00022498,2]
[313011843,1706614559089,808.3198501,0.00022498,2]
[313011844,1706614600026,561.1698166,0.00020468,2]
[313011845,1706614614516,167.76,0.00021857,2]
[313011846,1706614630999,1313.68858696,0.00021706,2]
[313011847,1706614631325,856.7420216,0.00022182,2]
[313011848,1706614631347,456.94656536,0.00022182,2]
[313011849,1706614631920,1313.68858696,0.00022301,2]
[313011850,1706614635124,229.36484768,0.00022078,2]
[313011851,1706614635144,317.15399868,0.00022078,2]
[313011852,1706614636064,455.45642413,0.00020468,2]
[313011853,1706614638698,162.5922843,0.00020698,2]
[313011854,1706614644894,64.79729289,0.00020698,2]
[313011855,1706614644915,90.68588492,0.00020698,2]
[313011856,1706614645328,500.0,0.00021857,2]
[313011857,1706614647135,260.71319616,0.00021857,2]
[313011858,1706614652675,361.93405445,0.00021857,2]
[313011859,1706614659348,404.33916482,0.00021201,2]
[313011860,1706614662864,257.41587382,0.00021857,2]
[313011861,1706614665116,211.93108541,0.00021857,2]
[313011862,1706614668665,425.16556619,0.00021857,2]
[313011863,1706614668948,732.18690129,0.00021,2]
[313011864,1706614673645,925.75,0.00021844,2]
[313011865,1706614675328,500.0,0.00021857,2]
[313011866,1706614677330,403.0530487,0.00021201,2]
[313011867,1706614677363,259.23,0.00021844,2]
[313011868,1706614686937,732.32661051,0.00021,2]
[313011881,1706614692227,150.0,0.00022,2]
[313011882,1706614697350,403.12005535,0.00021201,2]
[313011883,1706614697377,500.0,0.00021857,2]
[313011884,1706614704188,1972.398252,0.0002241,2]
[313011885,1706614704942,729.8522769,0.00021,2]
[313011886,1706614713341,500.0,0.00021844,2]
[313011887,1706614713393,403.12005535,0.00021189,2]
[313011888,1706614733278,726.32,0.00021852,2]
[313011889,1706614735469,403.12005535,0.00021189,2]
[313011890,1706614735496,351.92215591,0.00021844,2]
[313011891,1706614737157,848.69110025,0.00021844,2]
[313011892,1706614743108,808.3198501,0.00021844,2]
[313011893,1706614753154,848.69110025,0.00021844,2]
[313011894,1706614755348,403.12005535,0.00021189,2]
[313011895,1706614761099,808.49521,0.00021844,2]
[313011896,1706614762221,1313.68858696,0.00022299,2]
[313011897,1706614762951,1313.68858696,0.0002248,2]
[313011898,1706614768851,328.0,0.00021852,2]
[313011899,1706614769708,175.89,0.00017481,2]
[313011900,1706614771158,848.69110025,0.00021844,2]
[313011901,1706614771218,500.0,0.00021852,2]
[313011902,1706614771342,403.12005535,0.00021189,2]
[313011903,1706614787536,808.49521,0.00021844,2]
[313011904,1706614791151,848.69110025,0.00021844,2]
[313011905,1706614793352,403.12005535,0.00021189,2]
[313011906,1706614794256,158.16,0.00022011,2]
[313011907,1706614805137,808.49521,0.00021844,2]
[313011908,1706614809172,420.89643333,0.00021844,2]
[313011909,1706614820616,358.49,0.00019932,2]
[313011910,1706614820817,358.49,0.00022196,2]
[313011911,1706614822000,403.12005535,0.00021351,2]
[313011912,1706614823184,807.7937704,0.00022011,2]
[313011913,1706614833410,741.35,0.00021855,2]
[313011914,1706614839380,250.0,0.00021849,2]
[313011915,1706614842006,375.63878446,0.00021351,2]
[313011916,1706614890243,1313.68858697,0.00022474,2]
[313011917,1706614915825,1008.8,0.00020698,5]
[313011918,1706614915846,1138.59091129,0.00020698,5]
[313011919,1706614915867,80.27251652,0.00020698,5]
[313011920,1706614915943,1280.60501164,0.00022474,5]
[313011921,1706614935833,1280.60501164,0.00022474,5]
[313011922,1706614946758,161.94812689,0.00020698,2]
[313011923,1706614950707,9332.20980392,0.00022362,2]
[313011924,1706614953836,718.60795378,0.00022474,5]
[313011925,1706614954737,4171.93568487,0.00016856,2]
[313011926,1706614962185,155.14082571,0.00020227,2]
[313011927,1706614969696,250.0,0.00021918,2]
[313011928,1706614970748,161.94812689,0.00020698,2]
[313011929,1706614974970,732.32661051,0.00021,2]
[313011930,1706614979487,284.88299005,0.00022474,2]
[313011931,1706614990781,161.94812689,0.00020698,2]
[313011932,1706614992987,732.04719207,0.00021,2]
[313011933,1706615001158,260.71319616,0.00016856,2]
[313011934,1706615036991,234.80882246,0.00021842,2]
[313011935,1706615037016,515.19117754,0.00021842,2]
[313011936,1706615043676,231.62,0.00021842,2]
[313011937,1706615085134,765.58,0.00021842,2]
[313011938,1706615099034,183.23,0.00021842,2]
[313011939,1706615104574,176.49,0.00016712,2]
[313011941,1706615141093,200.0,0.00021842,2]
[313011942,1706615184770,175.89,0.00017464,2]
[313011943,1706615208231,158.16,0.00021991,2]
[313011944,1706615229122,-336.75377017,0.00022502,2]
[313011945,1706615251107,345.58,0.00019915,2]
[313011946,1706615251293,345.58,0.00022178,2]
[313011947,1706615270862,526.41523693,0.000225,2]
[313011948,1706615274684,731.08,0.00021837,2]
[313011949,1706615306840,737.6,0.00021837,2]
[313011950,1706615307284,505.05818019,0.000225,2]
[313011951,1706615359726,-1000.0,0.00022501,2]
[313011952,1706615359749,-166.24622983,0.00022502,2]
[313011953,1706615359773,-162.48293647,0.0002269,2]
[313011954,1706615359795,-162.48293647,0.00022702,2]
[313011955,1706615359818,-150.99,0.00022702,2]
[313011956,1706615359840,-724.42,0.00022712,2]
[313011957,1706615359869,-150.0,0.00022713,2]
[313011958,1706615359897,-162.48293647,0.00022714,2]
[313011959,1706615359922,-162.48293647,0.00022727,2]
[313011960,1706615359945,-499.99,0.00022727,2]
[313011961,1706615359968,-162.48293647,0.00022739,2]
[313011962,1706615359991,-2174.33,0.00022739,2]
[313011963,1706615360013,-727.79,0.0002274,2]
[313011964,1706615360037,-162.48293647,0.00022752,2]
[313011965,1706615360061,-162.48293647,0.00022764,2]
[313011966,1706615360085,-728.79,0.00022765,2]
[313011967,1706615360108,-1974.19553701,0.00022768,2]
[313011968,1706615360131,-5642.54980786,0.0002277,2]
[313011969,1706615360153,-162.48293647,0.00022776,2]
[313011970,1706615360177,-162.48293647,0.00022789,2]
[313011971,1706615360199,-370.64138861,0.000228,2]
[313011972,1706615360225,-162.48293647,0.00022801,2]
[313011973,1706615360249,-162.48293647,0.00022813,2]
[313011974,1706615360273,-162.48293647,0.00022826,2]
[313011975,1706615360297,-162.48293647,0.00022838,2]
[313011976,1706615360321,-162.48293647,0.00022851,2]
[313011977,1706615360345,-162.48293647,0.00022863,2]
[313011978,1706615360369,-162.48293647,0.00022875,2]
[313011979,1706615360393,-162.48293647,0.00022888,2]
[313011980,1706615360417,-161.01894556,0.000229,2]
[313011981,1706615360457,-162.48293647,0.000229,2]
[313011982,1706615360494,-204.59482831,0.000229,2]
[313011983,1706615360525,-3100.4642,0.000229,2]
[313011984,1706615360558,-4473.55582351,0.000229,2]
[313011985,1706615360594,-905.37521346,0.000229,2]
[313011986,1706615360628,-151.89900425,0.000229,2]
[313011987,1706615360655,-259.23,0.00022936,2]
[313011988,1706615360687,-4951.80312421,0.00022998,2]
[313011989,1706615360717,-267.44774941,0.00022998,2]
[313011990,1706615360747,-179.19899078,0.00022998,2]
[313011991,1706615360777,-4256.30556535,0.00022998,2]
[313011992,1706615360807,-713.29025206,0.00022998,2]
[313011993,1706615360841,-528.59781876,0.00022998,2]
[313011994,1706615360874,-228.79385703,0.00022999,2]
[313011995,1706615360904,-353.57284129,0.00022999,2]
[313011996,1706615360935,-212.73878423,0.00022999,2]
[313011997,1706615360965,-389.98813853,0.00022999,2]
[313011998,1706615360992,-654.85189866,0.00022999,2]
[313011999,1706615361018,-98772.63714483,0.00023,2]
[313012016,1706615431673,-662.3,0.00022999,2]
[313012017,1706615431687,-49.2,0.00022999,2]
[313012018,1706615431697,-656.2799712,0.00022999,2]
[313012019,1706615431729,-81.2900288,0.00022999,2]
[313012020,1706615431738,-860.13244526,0.00022999,2]
[313012021,1706615431747,-3197.13386433,0.00022999,2]
[313012022,1706615431757,-134229.61488041,0.00023,2]
[313012036,1706615437463,-341.54,0.00023,2]
[313012037,1706615437478,-1679.83585489,0.00023,2]
[313012038,1706615437491,-17833.28364705,0.00023,2]
[313012039,1706615437502,-2828.8378332,0.00023,2]
[313012040,1706615438024,-257.84999975,0.00023,2]
[313012041,1706615438081,-2498.94,0.00023,2]
[313012042,1706615438092,-11552.0172236,0.00023,2]
[313012043,1706615438136,-1175.94009535,0.00023,2]
[313012044,1706615438148,-12083.69711563,0.00023,2]
[313012045,1706615438206,-2338767.64476449,0.00023,2]
[313012046,1706615438218,-240540.17119662,0.00023,2]
[313012047,1706615438230,-974.32618933,0.00023,2]
[313012048,1706615438248,-307.33727712,0.00023,2]
[313012068,1706615440114,-264.93328666,0.00023,2]
[313012069,1706615440779,-2703.8869799,0.00023,2]
[313012071,1706615440912,-1748.68379032,0.00023,2]
[313012104,1706615443256,-978.47821035,0.00023,2]
[313012105,1706615443313,-1971.8425177,0.00023,2]
[313012106,1706615443325,-405.5664405,0.00023,2]
[313012107,1706615443379,-435470.26509648,0.00023,2]
[313012108,1706615443437,-502.87376891,0.00023,2]
[313012109,1706615443450,-8442.91032241,0.00023,2]
[313012110,1706615443462,-3629.71799642,0.00023,2]
[313012207,1706615447770,-26541.00565353,0.00023,2]
[313012208,1706615447784,-2000.0,0.00023,2]
[313012209,1706615454684,354.14880463,0.00022999,10]
[313012210,1706615454767,354.14880463,0.00022999,10]
[313012211,1706615454837,354.14880463,0.00022999,10]
[313012212,1706615523650,155.53,0.00022396,2]
[313012213,1706615525526,548.87,0.00022367,2]
[313012214,1706615525547,7084.94,0.00022367,2]
[313012215,1706615526094,231.62,0.00022367,2]
[313012216,1706615564047,693.83344823,0.00020697,2]
[313012217,1706615638058,5456.05,0.00021886,2]
[313012218,1706615645484,528.41,0.00021918,2]
[313012219,1706615650564,160.01,0.00022038,2]
[313012220,1706615651124,160.01,0.00022325,2]
[313012222,1706615687468,378.76,0.00019952,2]
[313012223,1706615687514,378.76,0.00022216,2]
[313012224,1706615687542,250.0,0.00021918,2]
[313012241,1706615744925,409.92,0.00021877,2]
[313012242,1706615750048,4166.64,0.00021877,2]
[313012244,1706615757166,303.92,0.00021877,2]
[313012245,1706615761026,2000.0,0.00021881,2]
[313012249,1706615811744,43946.27007013,0.00023,7]
[313012250,1706615818470,250.0,0.00021864,2]
[313012251,1706615912601,652.11,0.00021848,2]
[313012252,1706615918074,23890.0,0.00021848,2]
[313012253,1706616008709,183.23,0.00021848,2]
[313012254,1706616058361,224.04406869,0.000225,2]
[313012255,1706616081769,1000.0,0.000225,2]
[313012256,1706616097476,160.01,0.00021988,2]
[313012257,1706616161266,340.88,0.00019901,2]
[313012258,1706616161478,340.88,0.00022165,2]
[313012259,1706616265750,672.06,0.00021819,2]
[313012260,1706616361715,224.04406869,0.00022489,2]
[313012261,1706616379525,543.42,0.00021819,2]
[313012262,1706616394098,-292.81919456,0.00022559,2]
[313012263,1706616394118,-568.25679561,0.0002256,2]
[313012264,1706616419380,-431.74320439,0.0002256,2]
[313012265,1706616419406,-1087.31367999,0.0002256,2]
[313012266,1706616419431,-160.01,0.00022561,2]
[313012267,1706616419455,-3804.73263599,0.0002258,2]
[313012268,1706616419481,-24405.65890911,0.00022587,2]
[313012269,1706616419507,-4360.35224721,0.00022588,2]
[313012270,1706616419535,-292.81919456,0.00022588,2]
[313012271,1706616419564,-150.0,0.00022588,2]
[313012272,1706616419591,-1000.0,0.00022589,2]
[313012273,1706616419617,-4311.0556863,0.00022589,2]
[313012274,1706616419645,-62460.31444245,0.0002259,2]
[313012275,1706616437094,-736.82,0.0002259,2]
[313012276,1706616437114,-2545.36463076,0.0002259,2]
[313012277,1706616437823,155.53,0.00021831,2]
[313012278,1706616443272,-421.66034457,0.0002259,2]
[313012279,1706616503175,157.2734824,0.0002249,2]
[313012280,1706616548969,353.46,0.00022,2]
[313012287,1706616631583,-1000.0,0.00022528,2]
[313012288,1706616631592,-2954.07099699,0.00022529,2]
[313012289,1706616631602,-157.27348235,0.00022531,2]
[313012290,1706616631611,-833.16011945,0.00022541,2]
[313012291,1706616633806,-531.61797025,0.00022541,2]
[313012292,1706616633817,-13187.77817135,0.00022541,2]
[313012293,1706616633828,-3633.58362343,0.00022541,2]
[313012294,1706616633861,-294.88375833,0.00022541,2]
[313012335,1706616637691,-5924.6352663,0.00022541,2]
[313012336,1706616637700,-7929.0,0.00022542,2]
[313012337,1706616637709,-157.27348235,0.00022572,2]
[313012338,1706616637719,-300.0,0.00022588,2]
[313012339,1706616637728,-150.0,0.00022588,2]
[313012340,1706616637737,-716.22,0.00022589,2]
[313012341,1706616637748,-715.56,0.0002259,2]
[313012342,1706616637759,-714.07,0.0002259,2]
[313012343,1706616637769,-47807.49067507,0.0002259,2]
[313012344,1706616637782,-15507.03778785,0.0002259,2]
[313012345,1706616637792,-549.91,0.0002259,2]
[313012346,1706616637800,-406.96,0.0002259,2]
[313012347,1706616637809,-370.29,0.0002259,2]
[313012348,1706616637821,-725.61,0.00022599,2]
[313012349,1706616637830,-738.14,0.000226,2]
[313012350,1706616637840,-499.99,0.00022601,2]
[313012351,1706616637850,-999.99,0.00022601,2]
[313012352,1706616637862,-728.37,0.00022601,2]
[313012353,1706616637871,-718.93,0.00022602,2]
[313012354,1706616637882,-717.48,0.00022603,2]
[313012355,1706616637891,-714.55,0.00022603,2]
[313012356,1706616637901,-179.99,0.00022603,5]
[313012357,1706616637911,-729.7,0.00022604,2]
[313012358,1706616637921,-722.35,0.00022605,2]
[313012359,1706616637931,-3398.11,0.00022606,2]
[313012360,1706616637941,-734.78,0.00022606,2]
[313012361,1706616637952,-737.89,0.00022607,2]
[313012362,1706616637962,-716.93,0.00022607,2]
[313012363,1706616637972,-737.05,0.00022608,2]
[313012364,1706616637981,-731.05,0.0002261,2]
[313012365,1706616637994,-731.38,0.0002261,2]
[313012366,1706616638003,-710.88,0.00022611,2]
[313012367,1706616638013,-737.61,0.00022611,2]
[313012369,1706616638022,-731.09,0.00022611,2]
[313012371,1706616638032,-157.27348235,0.00022613,2]
[313012373,1706616638041,-157.27348235,0.00022654,2]
[313012375,1706616638050,-725.39,0.00022667,2]
[313012377,1706616638060,-735.75,0.00022667,2]
[313012379,1706616638070,-736.88,0.00022667,2]
[313012381,1706616638080,-9431.3829,0.0002267,2]
[313012383,1706616638089,-157.27348235,0.00022695,2]
[313012385,1706616638099,-240.1,0.00022707,2]
[313012387,1706616638108,-727.57,0.00022726,2]
[313012389,1706616638116,-157.27348235,0.00022736,2]
[313012391,1706616638126,-718.5,0.00022742,2]
[313012393,1706616638135,-732.73,0.00022766,2]
[313012395,1706616638144,-737.83,0.00022767,2]
[313012397,1706616638153,-17743.50880972,0.00022768,2]
[313012399,1706616638162,-726.45,0.00022768,2]
[313012401,1706616638175,-730.87,0.00022769,2]
[313012403,1706616638184,-283.08570456,0.00022769,2]
[313012405,1706616638194,-247.42374992,0.00022769,2]
[313012407,1706616638202,-712.28,0.0002277,2]
[313012409,1706616638211,-1302.01412096,0.0002277,2]
[313012411,1706616638221,-157.27348235,0.00022777,2]
[313012413,1706616638229,-155.27871789,0.000228,2]
[313012415,1706616638238,-150.0,0.00022811,2]
[313012417,1706616638248,-157.27348235,0.00022818,2]
[313012419,1706616638257,-157.27348235,0.00022859,2]
[313012421,1706616638266,-8131.717,0.00022897,2]
[313012423,1706616638276,-341.6147,0.00022899,2]
[313012425,1706616638285,-7434.5741,0.00022899,2]
[313012427,1706616638294,-492.7479,0.00022899,2]
[313012429,1706616638303,-152.499903,0.000229,2]
[313012431,1706616638313,-596.70798515,0.000229,2]
[313012433,1706616638322,-488.46642314,0.000229,2]
[313012435,1706616638331,-304.25730436,0.000229,2]
[313012437,1706616638340,-157.27348235,0.000229,2]
[313012439,1706616638349,-151.8543292,0.000229,2]
[313012440,1706616638358,-488.46642313,0.00022907,2]
[313012441,1706616638368,-152.49990297,0.0002291,2]
[313012442,1706616638377,-596.70798514,0.00022912,2]
[313012443,1706616638387,-488.46642313,0.00022914,2]
[313012444,1706616638395,-152.49990297,0.0002292,2]
[313012445,1706616638404,-488.46642313,0.00022921,2]
[313012446,1706616638415,-596.70798514,0.00022925,2]
[313012447,1706616638424,-488.46642313,0.00022928,2]
[313012448,1706616638433,-152.49990297,0.00022929,2]
[313012449,1706616638616,-221.13755376,0.00022932,2]
[313012450,1706616638626,-488.46642313,0.00022935,2]
[313012451,1706616638635,-596.70798514,0.00022937,2]
[313012452,1706616638645,-152.49990297,0.00022939,2]